[Event "*** Titled Tuesday Blitz"]
[Site "Chess.com"]
[Date "2020.05.12"]
[Round "10"]
[White "Flawless_Fighter"]
[Black "AlexZambrano"]
[Result "1-0"]
[WhiteElo "2470"]
[BlackElo "2304"]
[TimeControl "180+1"]
[EndTime "11:51:20 PDT"]
[Termination "Flawless_Fighter won by resignation"]

1. e4 {[%clk 0:03:00.9]} 1... d5 {[%clk 0:02:44.9]} 2. exd5 {[%clk 0:02:57.8]}
2... Qxd5 {[%clk 0:02:44.4]} 3. Nc3 {[%clk 0:02:57.6]} 3... Qd6 {[%clk
0:02:44.3]} 4. d4 {[%clk 0:02:57.2]} 4... c6 {[%clk 0:02:43.8]} 5. Nf3 {[%clk
0:02:56]} 5... Bg4 {[%clk 0:02:44]} 6. Be2 {[%clk 0:02:56.3]} 6... Nf6 {[%clk
0:02:43.6]} 7. h3 {[%clk 0:02:54.7]} 7... Bxf3 {[%clk 0:02:43.5]} 8. Bxf3 {[%clk
0:02:54.7]} 8... Nbd7 {[%clk 0:02:43.7]} 9. O-O {[%clk 0:02:54.6]} 9... e6
{[%clk 0:02:44]} 10. Re1 {[%clk 0:02:53.1]} 10... Be7 {[%clk 0:02:44.1]} 11. Ne4
{[%clk 0:02:52.8]} 11... Nxe4 {[%clk 0:02:44.1]} 12. Bxe4 {[%clk 0:02:53.7]}
12... Nf6 {[%clk 0:02:44.6]} 13. Bf3 {[%clk 0:02:52.3]} 13... O-O {[%clk
0:02:45]} 14. a4 {[%clk 0:02:44.9]} 14... Rfd8 {[%clk 0:02:43.3]} 15. c3 {[%clk
0:02:44.7]} 15... Qc7 {[%clk 0:02:35.7]} 16. Qe2 {[%clk 0:02:39.2]} 16... c5
{[%clk 0:02:34.5]} 17. Be3 {[%clk 0:02:35.9]} 17... Nd5 {[%clk 0:02:15.5]} 18.
Rad1 {[%clk 0:01:48.6]} 18... Nxe3 {[%clk 0:02:14.3]} 19. Qxe3 {[%clk
0:01:48.4]} 19... cxd4 {[%clk 0:02:11.6]} 20. cxd4 {[%clk 0:01:38]} 20... Bf6
{[%clk 0:01:57]} 21. b4 {[%clk 0:01:25.5]} 21... Rac8 {[%clk 0:01:47.3]} 22. d5
{[%clk 0:01:20.5]} 22... exd5 {[%clk 0:01:38.9]} 23. Bxd5 {[%clk 0:01:19.8]}
23... Bc3 {[%clk 0:01:38.9]} 24. Rc1 {[%clk 0:01:08]} 24... Rxd5 {[%clk
0:01:15.1]} 25. Qe8+ {[%clk 0:01:06.9]} 1-0

[Event "*** Titled Tuesday Blitz"]
[Site "Chess.com"]
[Date "2020.05.12"]
[Round "10"]
[White "giantslayer83"]
[Black "smshk35"]
[Result "1-0"]
[WhiteElo "2680"]
[BlackElo "2403"]
[TimeControl "180+1"]
[EndTime "11:51:26 PDT"]
[Termination "giantslayer83 won by resignation"]

1. d4 {[%clk 0:03:00.9]} 1... Nf6 {[%clk 0:02:59.7]} 2. Bg5 {[%clk 0:03:00.4]}
2... e6 {[%clk 0:02:59.4]} 3. Nd2 {[%clk 0:02:59.4]} 3... h6 {[%clk 0:02:59.7]}
4. Bh4 {[%clk 0:02:58.9]} 4... d6 {[%clk 0:02:58]} 5. e4 {[%clk 0:02:58.5]} 5...
Be7 {[%clk 0:02:53.8]} 6. Bd3 {[%clk 0:02:55.9]} 6... e5 {[%clk 0:02:53.9]} 7.
Ngf3 {[%clk 0:02:52]} 7... Nbd7 {[%clk 0:02:51.5]} 8. c3 {[%clk 0:02:51.3]} 8...
c6 {[%clk 0:02:50.7]} 9. Bg3 {[%clk 0:02:43.8]} 9... Nh5 {[%clk 0:02:47.7]} 10.
dxe5 {[%clk 0:02:39.3]} 10... Nxg3 {[%clk 0:02:45.8]} 11. hxg3 {[%clk
0:02:40.2]} 11... Nxe5 {[%clk 0:02:38.3]} 12. Bc2 {[%clk 0:02:35.8]} 12... O-O
{[%clk 0:02:32.7]} 13. Qe2 {[%clk 0:02:35.4]} 13... Bg4 {[%clk 0:02:21.9]} 14.
Qe3 {[%clk 0:02:35.4]} 14... Qb6 {[%clk 0:02:18.4]} 15. Qxb6 {[%clk 0:02:31.4]}
15... axb6 {[%clk 0:02:19.3]} 16. Nxe5 {[%clk 0:02:31.6]} 16... dxe5 {[%clk
0:02:20.2]} 17. Nc4 {[%clk 0:02:30.9]} 17... Be6 {[%clk 0:02:11.4]} 18. Nxe5
{[%clk 0:02:28.8]} 18... Rxa2 {[%clk 0:02:09.1]} 19. Rxa2 {[%clk 0:02:27.7]}
19... Bxa2 {[%clk 0:02:10]} 20. b3 {[%clk 0:02:12.5]} 20... Bf6 {[%clk
0:01:44.2]} 21. f4 {[%clk 0:02:11.6]} 21... Ra8 {[%clk 0:01:40.2]} 22. Kd2
{[%clk 0:02:08.6]} 22... Bxe5 {[%clk 0:01:30.7]} 23. fxe5 {[%clk 0:02:08.4]}
23... c5 {[%clk 0:01:30.8]} 24. Ra1 {[%clk 0:01:46.3]} 24... c4 {[%clk
0:01:29.4]} 25. Kc1 {[%clk 0:01:45]} 25... cxb3 {[%clk 0:01:01.2]} 26. Bxb3
{[%clk 0:01:44.9]} 26... Ra3 {[%clk 0:01:00.8]} 27. Bxa2 {[%clk 0:01:42.1]}
27... Rxc3+ {[%clk 0:01:00.9]} 28. Kd2 {[%clk 0:01:40.8]} 28... Rxg3 {[%clk
0:01:01]} 29. Bd5 {[%clk 0:01:39.7]} 29... Rxg2+ {[%clk 0:01:00.3]} 30. Ke3
{[%clk 0:01:39.5]} 30... h5 {[%clk 0:00:53.9]} 31. Ra8+ {[%clk 0:01:39]} 31...
Kh7 {[%clk 0:00:53.6]} 32. Bxf7 {[%clk 0:01:39.2]} 1-0

[Event "*** Titled Tuesday Blitz"]
[Site "Chess.com"]
[Date "2020.05.12"]
[Round "10"]
[White "BhulseATX"]
[Black "CHENNAIBOND"]
[Result "1-0"]
[WhiteElo "1974"]
[BlackElo "1300"]
[TimeControl "180+1"]
[EndTime "11:51:26 PDT"]
[Termination "BhulseATX won by resignation"]

1. d4 {[%clk 0:03:00.9]} 1... Nf6 {[%clk 0:02:59.4]} 2. Nf3 {[%clk 0:03:00.5]}
2... d5 {[%clk 0:02:59.2]} 3. c4 {[%clk 0:03:00.3]} 3... e6 {[%clk 0:02:59.8]}
4. Nc3 {[%clk 0:03:00.2]} 4... Bb4 {[%clk 0:03:00.2]} 5. Qa4+ {[%clk 0:02:59.2]}
5... Nc6 {[%clk 0:02:59.9]} 6. e3 {[%clk 0:02:59.1]} 6... O-O {[%clk 0:03:00.1]}
7. a3 {[%clk 0:02:58.8]} 7... Bxc3+ {[%clk 0:02:57.7]} 8. bxc3 {[%clk
0:02:58.3]} 8... Bd7 {[%clk 0:02:57.9]} 9. Qc2 {[%clk 0:02:57.9]} 9... Ne4
{[%clk 0:02:37.2]} 10. Bd3 {[%clk 0:02:56.1]} 10... f5 {[%clk 0:02:36.8]} 11.
O-O {[%clk 0:02:54.9]} 11... g5 {[%clk 0:02:25.6]} 12. cxd5 {[%clk 0:02:52.6]}
12... exd5 {[%clk 0:02:26.5]} 13. c4 {[%clk 0:02:52.3]} 13... Be6 {[%clk
0:02:20]} 14. cxd5 {[%clk 0:02:48.4]} 14... Bxd5 {[%clk 0:02:19.8]} 15. Bc4
{[%clk 0:02:47.3]} 15... g4 {[%clk 0:02:11.2]} 16. Nd2 {[%clk 0:02:39.3]} 16...
Kh8 {[%clk 0:02:01.1]} 17. Bxd5 {[%clk 0:02:19.2]} 17... Qxd5 {[%clk 0:01:59.4]}
18. f3 {[%clk 0:02:18.2]} 18... gxf3 {[%clk 0:01:50.1]} 19. Nxf3 {[%clk
0:02:14.8]} 19... Rg8 {[%clk 0:01:44.5]} 20. Rb1 {[%clk 0:02:12.7]} 20... Rg7
{[%clk 0:01:21]} 21. Rxb7 {[%clk 0:01:55.1]} 21... Rag8 {[%clk 0:00:56.3]} 22.
Nh4 {[%clk 0:01:52.3]} 22... Nxd4 {[%clk 0:00:38.3]} 23. exd4 {[%clk 0:01:48.4]}
23... Qxb7 {[%clk 0:00:30.3]} 24. Bf4 {[%clk 0:01:43.9]} 24... Nd6 {[%clk
0:00:24.4]} 25. Be5 {[%clk 0:01:43.3]} 1-0

[Event "*** Titled Tuesday Blitz"]
[Site "Chess.com"]
[Date "2020.05.12"]
[Round "10"]
[White "TST2014"]
[Black "Nafania1"]
[Result "0-1"]
[WhiteElo "2571"]
[BlackElo "2451"]
[TimeControl "180+1"]
[EndTime "11:51:28 PDT"]
[Termination "Nafania1 won on time"]

1. d4 {[%clk 0:03:00.9]} 1... Nf6 {[%clk 0:02:59.3]} 2. c4 {[%clk 0:02:59.7]}
2... e6 {[%clk 0:02:59.6]} 3. Nf3 {[%clk 0:02:59.5]} 3... Bb4+ {[%clk
0:02:58.7]} 4. Bd2 {[%clk 0:02:59]} 4... a5 {[%clk 0:02:58.2]} 5. g3 {[%clk
0:02:57.2]} 5... d5 {[%clk 0:02:58.2]} 6. Qc2 {[%clk 0:02:51.8]} 6... O-O {[%clk
0:02:57.8]} 7. Bg2 {[%clk 0:02:51.6]} 7... c6 {[%clk 0:02:52.3]} 8. O-O {[%clk
0:02:50.6]} 8... Be7 {[%clk 0:02:52.4]} 9. Bf4 {[%clk 0:02:41.8]} 9... Nh5
{[%clk 0:02:35.7]} 10. Be3 {[%clk 0:02:36.3]} 10... Nd7 {[%clk 0:02:30.3]} 11.
Nbd2 {[%clk 0:02:34]} 11... f5 {[%clk 0:02:30.1]} 12. Rac1 {[%clk 0:02:14]}
12... g5 {[%clk 0:02:29.3]} 13. Nb1 {[%clk 0:02:09.6]} 13... f4 {[%clk
0:02:21.6]} 14. Bd2 {[%clk 0:02:08.7]} 14... g4 {[%clk 0:02:22]} 15. Ne5 {[%clk
0:02:08.2]} 15... Nxe5 {[%clk 0:02:21.5]} 16. dxe5 {[%clk 0:02:08.2]} 16... Qe8
{[%clk 0:02:03.7]} 17. f3 {[%clk 0:01:33.8]} 17... Bc5+ {[%clk 0:01:57.1]} 18.
Kh1 {[%clk 0:01:29]} 18... Nxg3+ {[%clk 0:01:57.1]} 19. hxg3 {[%clk 0:00:09.5]}
19... Qh5+ {[%clk 0:01:55]} 0-1

[Event "*** Titled Tuesday Blitz"]
[Site "Chess.com"]
[Date "2020.05.12"]
[Round "10"]
[White "okriak"]
[Black "MiroVlasenko"]
[Result "0-1"]
[WhiteElo "2773"]
[BlackElo "2625"]
[TimeControl "180+1"]
[EndTime "11:51:35 PDT"]
[Termination "MiroVlasenko won by resignation"]

1. Nf3 {[%clk 0:03:00.9]} 1... Nc6 {[%clk 0:02:58.2]} 2. e4 {[%clk 0:03:00.4]}
2... d6 {[%clk 0:02:56.8]} 3. d4 {[%clk 0:02:59.8]} 3... Nf6 {[%clk 0:02:57.3]}
4. d5 {[%clk 0:02:59]} 4... Ne5 {[%clk 0:02:57.2]} 5. Nxe5 {[%clk 0:02:58.7]}
5... dxe5 {[%clk 0:02:58.1]} 6. Bd3 {[%clk 0:02:55.3]} 6... e6 {[%clk
0:02:57.8]} 7. c4 {[%clk 0:02:55.3]} 7... exd5 {[%clk 0:02:56.7]} 8. cxd5 {[%clk
0:02:55.3]} 8... Bc5 {[%clk 0:02:56.3]} 9. O-O {[%clk 0:02:53.7]} 9... O-O
{[%clk 0:02:52.4]} 10. Nc3 {[%clk 0:02:53.3]} 10... a6 {[%clk 0:02:52.4]} 11.
Kh1 {[%clk 0:02:50.9]} 11... Ng4 {[%clk 0:02:47.8]} 12. Qf3 {[%clk 0:02:48.9]}
12... Qh4 {[%clk 0:02:45.6]} 13. h3 {[%clk 0:02:45.9]} 13... Nxf2+ {[%clk
0:02:43.5]} 14. Kh2 {[%clk 0:02:45.9]} 14... g6 {[%clk 0:02:08.1]} 15. Bd2
{[%clk 0:02:31.9]} 15... Ng4+ {[%clk 0:01:57.7]} 16. Kh1 {[%clk 0:02:31.4]}
16... Nf2+ {[%clk 0:01:58]} 17. Kh2 {[%clk 0:02:31.5]} 17... Nxd3 {[%clk
0:01:57]} 18. Qxd3 {[%clk 0:02:30.8]} 18... f5 {[%clk 0:01:56.7]} 19. Be3 {[%clk
0:02:16.8]} 19... Bd6 {[%clk 0:01:54]} 20. Bf2 {[%clk 0:02:13.5]} 20... Qe7
{[%clk 0:01:52]} 21. Kh1 {[%clk 0:02:08]} 21... f4 {[%clk 0:01:52]} 22. a3
{[%clk 0:02:06.5]} 22... g5 {[%clk 0:01:51.5]} 23. Kg1 {[%clk 0:02:03.7]} 23...
h5 {[%clk 0:01:50.1]} 24. Rfc1 {[%clk 0:02:03]} 24... g4 {[%clk 0:01:47.9]} 25.
Kf1 {[%clk 0:02:03.2]} 25... Qg5 {[%clk 0:01:39.8]} 26. hxg4 {[%clk 0:01:58.9]}
26... hxg4 {[%clk 0:01:38.8]} 27. Ke1 {[%clk 0:01:58.9]} 27... g3 {[%clk
0:01:34.8]} 28. Bg1 {[%clk 0:01:58.6]} 28... Bg4 {[%clk 0:01:34.8]} 29. Kd2
{[%clk 0:01:56.6]} 29... Kg7 {[%clk 0:01:31.2]} 30. Kc2 {[%clk 0:01:56.3]} 30...
Rh8 {[%clk 0:01:31]} 31. b4 {[%clk 0:01:52.2]} 31... Rh1 {[%clk 0:01:28.4]} 32.
Bc5 {[%clk 0:01:50.1]} 32... Rxc1+ {[%clk 0:01:24.6]} 33. Rxc1 {[%clk
0:01:49.7]} 33... Rh8 {[%clk 0:01:25]} 34. Qc4 {[%clk 0:01:44.4]} 34... Qe7
{[%clk 0:01:22.3]} 35. Bg1 {[%clk 0:01:41.7]} 35... f3 {[%clk 0:01:18.2]} 36.
gxf3 {[%clk 0:01:41.2]} 36... Bxf3 {[%clk 0:01:18.5]} 37. Kb3 {[%clk 0:01:38.8]}
37... Rf8 {[%clk 0:01:14.5]} 38. Qd3 {[%clk 0:01:36.8]} 38... Qh4 {[%clk
0:01:13.1]} 39. Na4 {[%clk 0:01:31.7]} 39... Qxe4 {[%clk 0:01:11.7]} 40. Qd2
{[%clk 0:01:29.5]} 40... Qxd5+ {[%clk 0:01:11.5]} 0-1

[Event "*** Titled Tuesday Blitz"]
[Site "Chess.com"]
[Date "2020.05.12"]
[Round "10"]
[White "Matalon"]
[Black "Sanyura"]
[Result "0-1"]
[WhiteElo "2356"]
[BlackElo "2495"]
[TimeControl "180+1"]
[EndTime "11:51:36 PDT"]
[Termination "Sanyura won by resignation"]

1. e4 {[%clk 0:03:00.9]} 1... c5 {[%clk 0:02:59.5]} 2. Nf3 {[%clk 0:03:00.7]}
2... e6 {[%clk 0:02:59.8]} 3. d4 {[%clk 0:03:00.7]} 3... cxd4 {[%clk 0:03:00.7]}
4. Nxd4 {[%clk 0:03:01]} 4... Nf6 {[%clk 0:02:59.9]} 5. Nc3 {[%clk 0:03:00.8]}
5... Nc6 {[%clk 0:02:59.4]} 6. Ndb5 {[%clk 0:02:50.7]} 6... Bc5 {[%clk
0:02:57.6]} 7. Bf4 {[%clk 0:02:48.6]} 7... O-O {[%clk 0:02:56.5]} 8. Bd6 {[%clk
0:02:48.1]} 8... Bxd6 {[%clk 0:02:55.7]} 9. Nxd6 {[%clk 0:02:33.7]} 9... a6
{[%clk 0:02:51.9]} 10. Qd2 {[%clk 0:02:27.3]} 10... b5 {[%clk 0:02:51.2]} 11. f3
{[%clk 0:02:24.5]} 11... b4 {[%clk 0:02:50.1]} 12. Na4 {[%clk 0:02:22.5]} 12...
Qa5 {[%clk 0:02:49.7]} 13. b3 {[%clk 0:02:20.3]} 13... Qe5 {[%clk 0:02:49.1]}
14. Rd1 {[%clk 0:02:17.6]} 14... Ne8 {[%clk 0:02:32.6]} 15. Nb6 {[%clk
0:02:02.9]} 15... Nxd6 {[%clk 0:02:21.9]} 16. Nxa8 {[%clk 0:01:52.2]} 16... Nb5
{[%clk 0:02:20.9]} 17. Bxb5 {[%clk 0:01:50.7]} 17... Qxb5 {[%clk 0:02:17.8]} 18.
Qd6 {[%clk 0:01:36.8]} 18... a5 {[%clk 0:02:09.2]} 19. Nc7 {[%clk 0:01:32]}
19... Qb6 {[%clk 0:02:08.7]} 20. Rd3 {[%clk 0:01:17]} 20... f6 {[%clk
0:01:58.7]} 21. Nd5 {[%clk 0:01:08.3]} 21... exd5 {[%clk 0:01:54.7]} 22. exd5
{[%clk 0:01:08.4]} 22... Re8+ {[%clk 0:01:54.6]} 23. Kd1 {[%clk 0:01:07.5]}
23... Ba6 {[%clk 0:01:44.7]} 24. dxc6 {[%clk 0:01:07.4]} 24... Bxd3 {[%clk
0:01:44]} 25. cxd7 {[%clk 0:01:07.5]} 25... Bxc2+ {[%clk 0:01:32.4]} 26. Kxc2
{[%clk 0:01:01.6]} 26... Re2+ {[%clk 0:01:31.4]} 27. Kd1 {[%clk 0:00:44.7]}
27... Qxd6+ {[%clk 0:01:31.1]} 28. Kxe2 {[%clk 0:00:45.1]} 28... Qxd7 {[%clk
0:01:32]} 0-1

[Event "*** Titled Tuesday Blitz"]
[Site "Chess.com"]
[Date "2020.05.12"]
[Round "10"]
[White "realmadridtv"]
[Black "lupta_robin"]
[Result "0-1"]
[WhiteElo "2470"]
[BlackElo "2587"]
[TimeControl "180+1"]
[EndTime "11:51:45 PDT"]
[Termination "lupta_robin won by resignation"]

1. d4 {[%clk 0:03:00.9]} 1... d5 {[%clk 0:02:58.5]} 2. c4 {[%clk 0:03:01.2]}
2... Nc6 {[%clk 0:02:58]} 3. Nf3 {[%clk 0:02:58]} 3... Bg4 {[%clk 0:02:56.3]} 4.
e3 {[%clk 0:02:56.7]} 4... e5 {[%clk 0:02:56]} 5. cxd5 {[%clk 0:02:55]} 5...
Qxd5 {[%clk 0:02:54.6]} 6. Nc3 {[%clk 0:02:55.5]} 6... Bb4 {[%clk 0:02:55.1]} 7.
Bd2 {[%clk 0:02:26.3]} 7... Bxc3 {[%clk 0:02:53.8]} 8. bxc3 {[%clk 0:02:26.7]}
8... e4 {[%clk 0:02:41.1]} 9. h3 {[%clk 0:02:27]} 9... exf3 {[%clk 0:02:40.2]}
10. hxg4 {[%clk 0:02:25.8]} 10... fxg2 {[%clk 0:02:40.2]} 11. Bxg2 {[%clk
0:02:22.6]} 11... Qxg2 {[%clk 0:02:40]} 12. Ke2 {[%clk 0:02:23.5]} 12... Qxg4+
{[%clk 0:02:38.7]} 13. f3 {[%clk 0:02:24.1]} 13... Qg2+ {[%clk 0:02:36.2]} 14.
Kd3 {[%clk 0:02:24.6]} 14... Qg6+ {[%clk 0:02:29.9]} 15. e4 {[%clk 0:02:24.9]}
15... O-O-O {[%clk 0:02:26.6]} 16. Rb1 {[%clk 0:02:22.9]} 16... Ne5+ {[%clk
0:02:24]} 17. Ke3 {[%clk 0:02:15.9]} 17... Nc4+ {[%clk 0:02:21]} 18. Kf2 {[%clk
0:02:16.3]} 18... Nxd2 {[%clk 0:02:04.7]} 19. Qxd2 {[%clk 0:02:17.2]} 19... Ne7
{[%clk 0:02:01.1]} 20. d5 {[%clk 0:02:08.5]} 20... f5 {[%clk 0:01:55.6]} 21. Qb2
{[%clk 0:02:02.9]} 21... b6 {[%clk 0:01:51.3]} 22. Qa3 {[%clk 0:02:01.7]} 22...
fxe4 {[%clk 0:01:36.1]} 23. Qxe7 {[%clk 0:02:01.2]} 23... Rhf8 {[%clk
0:01:35.5]} 24. Rbg1 {[%clk 0:01:49.8]} 24... Rxf3+ {[%clk 0:01:34.8]} 25. Ke2
{[%clk 0:01:50]} 25... Qf5 {[%clk 0:01:35.4]} 26. Rxg7 {[%clk 0:01:47.9]} 26...
Qf4 {[%clk 0:01:22.2]} 27. Qxd8+ {[%clk 0:01:16.6]} 27... Kxd8 {[%clk
0:01:17.6]} 28. Rg8+ {[%clk 0:01:16.1]} 28... Kd7 {[%clk 0:01:17.8]} 29. Rxh7+
{[%clk 0:01:14.6]} 29... Kd6 {[%clk 0:01:18.1]} 30. Rg6+ {[%clk 0:01:08.8]}
30... Kc5 {[%clk 0:01:15.4]} 31. Rc6+ {[%clk 0:01:03.8]} 31... Kxd5 {[%clk
0:01:14.9]} 0-1

[Event "*** Titled Tuesday Blitz"]
[Site "Chess.com"]
[Date "2020.05.12"]
[Round "10"]
[White "Loiacono_Antonio"]
[Black "YaWaleriy"]
[Result "0-1"]
[WhiteElo "2394"]
[BlackElo "2258"]
[TimeControl "180+1"]
[EndTime "11:51:47 PDT"]
[Termination "YaWaleriy won by resignation"]

1. e4 {[%clk 0:03:00.9]} 1... e6 {[%clk 0:02:59.6]} 2. d4 {[%clk 0:03:00.5]}
2... d5 {[%clk 0:03:00]} 3. Nc3 {[%clk 0:03:00.8]} 3... Nf6 {[%clk 0:02:59.8]}
4. e5 {[%clk 0:03:00.8]} 4... Nfd7 {[%clk 0:02:59.7]} 5. f4 {[%clk 0:03:01.1]}
5... c5 {[%clk 0:03:00.1]} 6. Nf3 {[%clk 0:03:01.3]} 6... Nc6 {[%clk 0:03:00.4]}
7. Be3 {[%clk 0:03:01.6]} 7... cxd4 {[%clk 0:03:00.9]} 8. Nxd4 {[%clk
0:03:01.7]} 8... Bc5 {[%clk 0:03:01.4]} 9. Qd2 {[%clk 0:03:01.2]} 9... O-O
{[%clk 0:03:01.9]} 10. O-O-O {[%clk 0:02:59.2]} 10... a6 {[%clk 0:03:02.3]} 11.
Qf2 {[%clk 0:02:58.8]} 11... Bxd4 {[%clk 0:03:00.7]} 12. Bxd4 {[%clk 0:02:58.9]}
12... b5 {[%clk 0:03:01.2]} 13. Be3 {[%clk 0:02:57.8]} 13... b4 {[%clk
0:03:00.9]} 14. Ne2 {[%clk 0:02:52]} 14... a5 {[%clk 0:03:01.2]} 15. Nd4 {[%clk
0:02:51.2]} 15... Qc7 {[%clk 0:02:58.7]} 16. Kb1 {[%clk 0:02:50.5]} 16... Ba6
{[%clk 0:02:57.9]} 17. Bd3 {[%clk 0:02:49.9]} 17... a4 {[%clk 0:02:51.5]} 18. h4
{[%clk 0:02:45.3]} 18... Rfc8 {[%clk 0:02:34.4]} 19. h5 {[%clk 0:02:43.2]} 19...
b3 {[%clk 0:02:02.6]} 20. cxb3 {[%clk 0:02:25.3]} 20... Nxd4 {[%clk 0:01:59]}
21. Bxd4 {[%clk 0:02:22.8]} 21... axb3 {[%clk 0:01:59]} 22. axb3 {[%clk
0:02:18.4]} 22... Qa5 {[%clk 0:01:48.7]} 23. Bc3 {[%clk 0:02:05.2]} 23... Qa2+
{[%clk 0:01:41.5]} 24. Kc2 {[%clk 0:02:04.2]} 24... Rxc3+ {[%clk 0:01:34.8]} 25.
Kxc3 {[%clk 0:02:02.2]} 25... Rc8+ {[%clk 0:01:33.2]} 26. Kd4 {[%clk 0:02:00.7]}
26... Qxb3 {[%clk 0:01:31.3]} 27. Ke3 {[%clk 0:01:57.2]} 27... Nc5 {[%clk
0:01:25.7]} 28. Qe2 {[%clk 0:01:52.7]} 28... d4+ {[%clk 0:01:05.3]} 29. Kxd4
{[%clk 0:01:34.4]} 29... Rd8+ {[%clk 0:01:03.4]} 30. Ke3 {[%clk 0:01:32.8]}
30... Bxd3 {[%clk 0:01:02.3]} 31. Qd2 {[%clk 0:01:26.7]} 31... Bc2+ {[%clk
0:00:57]} 32. Qc3 {[%clk 0:01:22.2]} 32... Rxd1 {[%clk 0:00:54.8]} 0-1

[Event "*** Titled Tuesday Blitz"]
[Site "Chess.com"]
[Date "2020.05.12"]
[Round "10"]
[White "sergiochess83"]
[Black "jacky72"]
[Result "1-0"]
[WhiteElo "2816"]
[BlackElo "2653"]
[TimeControl "180+1"]
[EndTime "11:51:50 PDT"]
[Termination "sergiochess83 won by checkmate"]

1. e4 {[%clk 0:03:00.9]} 1... e5 {[%clk 0:02:56.3]} 2. Nf3 {[%clk 0:03:00.7]}
2... Nc6 {[%clk 0:02:56.3]} 3. Bb5 {[%clk 0:03:01.2]} 3... a6 {[%clk 0:02:56.3]}
4. Ba4 {[%clk 0:03:01.1]} 4... d6 {[%clk 0:02:56.8]} 5. O-O {[%clk 0:03:00.7]}
5... Bd7 {[%clk 0:02:57.3]} 6. c3 {[%clk 0:02:57.6]} 6... g6 {[%clk 0:02:57.5]}
7. d4 {[%clk 0:02:58.1]} 7... Bg7 {[%clk 0:02:57.7]} 8. Re1 {[%clk 0:02:58.7]}
8... Nf6 {[%clk 0:02:57.8]} 9. h3 {[%clk 0:02:58.3]} 9... O-O {[%clk 0:02:58]}
10. Nbd2 {[%clk 0:02:57.3]} 10... Re8 {[%clk 0:02:58.1]} 11. d5 {[%clk 0:02:51]}
11... Ne7 {[%clk 0:02:56.8]} 12. Bxd7 {[%clk 0:02:51.9]} 12... Nxd7 {[%clk
0:02:56.9]} 13. c4 {[%clk 0:02:52.4]} 13... Rf8 {[%clk 0:02:56]} 14. Nf1 {[%clk
0:02:52.1]} 14... h6 {[%clk 0:02:56.2]} 15. b4 {[%clk 0:02:36.4]} 15... a5
{[%clk 0:02:54.9]} 16. bxa5 {[%clk 0:02:30.4]} 16... f5 {[%clk 0:02:52.6]} 17.
N3d2 {[%clk 0:02:28.7]} 17... Rxa5 {[%clk 0:02:50.3]} 18. a4 {[%clk 0:02:28.6]}
18... f4 {[%clk 0:02:42.8]} 19. Ba3 {[%clk 0:02:21.3]} 19... g5 {[%clk
0:02:40.6]} 20. Bb4 {[%clk 0:02:21.5]} 20... Ra6 {[%clk 0:02:39.1]} 21. a5
{[%clk 0:02:21.8]} 21... Nf6 {[%clk 0:02:37.7]} 22. c5 {[%clk 0:02:19.5]} 22...
h5 {[%clk 0:02:37.2]} 23. cxd6 {[%clk 0:02:19.3]} 23... cxd6 {[%clk 0:02:38.1]}
24. Nh2 {[%clk 0:02:13.9]} 24... Qd7 {[%clk 0:02:33.3]} 25. Nc4 {[%clk
0:02:09.8]} 25... g4 {[%clk 0:02:29.4]} 26. hxg4 {[%clk 0:02:07.1]} 26... hxg4
{[%clk 0:02:30.3]} 27. Nb6 {[%clk 0:02:05.8]} 27... Qb5 {[%clk 0:02:24.6]} 28.
Bxd6 {[%clk 0:02:04.6]} 28... g3 {[%clk 0:02:25]} 29. Bxe7 {[%clk 0:01:53.7]}
29... gxh2+ {[%clk 0:02:22.6]} 30. Kxh2 {[%clk 0:01:50.6]} 30... Rf7 {[%clk
0:02:22.4]} 31. d6 {[%clk 0:01:50.2]} 31... Nd7 {[%clk 0:02:16.9]} 32. Qd5
{[%clk 0:01:46.8]} 32... Qxd5 {[%clk 0:02:12.7]} 33. Nxd5 {[%clk 0:01:35.4]}
33... Bf8 {[%clk 0:02:11.3]} 34. Rec1 {[%clk 0:01:34.5]} 34... Kg7 {[%clk
0:02:06.5]} 35. Rc7 {[%clk 0:01:29.6]} 35... Nb8 {[%clk 0:01:54.8]} 36. Bxf8+
{[%clk 0:01:19.9]} 36... Kxf8 {[%clk 0:01:55.1]} 37. Rc8+ {[%clk 0:01:20.2]}
37... Kg7 {[%clk 0:01:55.6]} 38. Rxb8 {[%clk 0:01:20.3]} 38... Rxd6 {[%clk
0:01:56.5]} 39. Rb1 {[%clk 0:01:16.3]} 39... f3 {[%clk 0:01:55.1]} 40. R1xb7
{[%clk 0:01:13.9]} 40... Rh6+ {[%clk 0:01:54.8]} 41. Kg1 {[%clk 0:01:12.6]}
41... Rg6 {[%clk 0:01:53.9]} 42. Rxf7+ {[%clk 0:01:12.1]} 42... Kxf7 {[%clk
0:01:54.8]} 43. Rb7+ {[%clk 0:01:10.9]} 43... Kf8 {[%clk 0:01:53.9]} 44. g3
{[%clk 0:01:10]} 44... Rg7 {[%clk 0:01:52.6]} 45. a6 {[%clk 0:01:08.8]} 45...
Rg6 {[%clk 0:01:51.2]} 46. a7 {[%clk 0:01:08.3]} 46... Ra6 {[%clk 0:01:52.1]}
47. Rb8+ {[%clk 0:01:04.8]} 47... Kg7 {[%clk 0:01:53]} 48. a8=Q {[%clk
0:01:04.8]} 48... Rxa8 {[%clk 0:01:53.9]} 49. Rxa8 {[%clk 0:01:05.2]} 49... Kg6
{[%clk 0:01:54.8]} 50. Rf8 {[%clk 0:01:04.7]} 50... Kh5 {[%clk 0:01:55.7]} 51.
Rxf3 {[%clk 0:01:04.2]} 51... Kg4 {[%clk 0:01:56.6]} 52. Rf5 {[%clk 0:01:04]}
52... Kh3 {[%clk 0:01:57.5]} 53. Kh1 {[%clk 0:01:01.1]} 53... Kg4 {[%clk
0:01:57.6]} 54. Ne3+ {[%clk 0:01:02]} 54... Kh3 {[%clk 0:01:57.5]} 55. Rh5#
{[%clk 0:01:02.9]} 1-0